fUST/lending_fUST_20250219
["ID","MTS","AMOUNT","RATE_DAILY","PERIOD"]
[353640782,1739977839886,-500.0,0.00013698,2]
[353640783,1739977839895,-502.80790889,0.00013698,2]
[353640784,1739977839904,-500.0,0.00013698,2]
[353640785,1739977839914,-1079.29,0.00013698,2]
[353640786,1739977839923,-500.0,0.00013698,2]
[353640787,1739977839932,-500.0,0.00013698,2]
[353640788,1739977839942,-500.0,0.00013698,2]
[353640789,1739977839951,-500.0,0.00013698,2]
[353640790,1739977839960,-500.0,0.00013698,2]
[353640791,1739977839970,-500.0,0.00013698,2]
[353640792,1739977839979,-500.8507884,0.00013698,2]
[353640793,1739977839990,-500.0,0.00013698,2]
[353640794,1739977840000,-500.0,0.00013698,2]
[353640795,1739977840012,-500.0,0.00013698,2]
[353640796,1739977840022,-500.0,0.00013698,2]
[353640797,1739977840032,-500.0,0.00013698,2]
[353640798,1739977840041,-500.0,0.00013698,2]
[353640799,1739977840051,-500.0,0.00013698,2]
[353640800,1739977840060,-500.0,0.00013698,2]
[353640801,1739977840069,-500.0,0.00013698,2]
[353640802,1739977840079,-2922.36,0.00013698,2]
[353640803,1739977840089,-500.0,0.00013698,2]
[353640804,1739977840098,-9414.43,0.00013698,2]
[353640805,1739977840108,-500.0,0.00013698,2]
[353640806,1739977840118,-550.9,0.00013698,2]
[353640807,1739977840127,-538.88,0.00013698,2]
[353640808,1739977840136,-500.0,0.00013698,2]
[353640809,1739977840241,-500.0,0.00013698,2]
[353640810,1739977840251,-1166.84,0.00013698,2]
[353640811,1739977840261,-500.0,0.00013698,2]
[353640812,1739977840273,-500.0,0.00013698,2]
[353640813,1739977840282,-500.0,0.00013698,2]
[353640814,1739977840291,-500.0,0.00013698,2]
[353640815,1739977840300,-500.0,0.00013698,2]
[353640816,1739977840310,-500.73349026,0.00013698,2]
[353640817,1739977840319,-500.0,0.00013698,2]
[353640818,1739977840329,-745.14,0.00013698,2]
[353640819,1739977840339,-619.34,0.00013698,2]
[353640820,1739977840348,-500.0,0.00013698,2]
[353640821,1739977840358,-500.0,0.00013698,2]
[353640822,1739977840367,-500.0,0.00013698,2]
[353640823,1739977840376,-500.0,0.00013698,2]
[353640824,1739977840386,-500.0,0.00013698,2]
[353640825,1739977840396,-500.0,0.00013698,2]
[353640826,1739977840405,-500.0,0.00013698,2]
[353640827,1739977840415,-309.62,0.00013698,2]
[353640828,1739977840425,-232.098213,0.00013699,2]
[353640829,1739977840434,-190.447861,0.00013699,2]
[353640830,1739977840444,-500.0,0.00013699,2]
[353640831,1739977840453,-500.0,0.00013699,2]
[353640832,1739977840463,-500.0,0.00013699,2]
[353640833,1739977840472,-500.0,0.00013699,2]
[353640834,1739977840481,-500.0,0.00013699,2]
[353640835,1739977840491,-500.0,0.00013699,2]
[353640836,1739977840500,-500.0,0.00013699,2]
[353640837,1739977840510,-500.0,0.00013699,2]
[353640838,1739977840520,-65.02288794,0.00013699,2]
[353640839,1739977840535,-434.97711206,0.00013699,2]
[353640840,1739977840544,-500.0,0.00013699,2]
[353640841,1739977840554,-500.0,0.00013699,2]
[353640842,1739977840563,-500.0,0.00013699,2]
[353640843,1739977840573,-500.0,0.00013699,2]
[353640844,1739977840582,-500.0,0.00013699,2]
[353640845,1739977840592,-304.50610926,0.00013699,2]
[353640846,1739977840602,-500.0,0.00013699,2]
[353640847,1739977840611,-500.0,0.0001378,2]
[353640848,1739977840620,-500.0,0.0001378,2]
[353640849,1739977840630,-402.65,0.0001378,2]
[353640850,1739977840639,-500.0,0.0001378,2]
[353640851,1739977840649,-503.50174926,0.0001378,2]
[353640852,1739977840659,-500.0,0.0001378,2]
[353640853,1739977840668,-227.89,0.0001378,2]
[353640854,1739977840678,-500.0,0.0001378,2]
[353640855,1739977840688,-500.0,0.0001378,2]
[353640856,1739977840698,-500.0,0.0001378,2]
[353640857,1739977840708,-500.0,0.0001378,2]
[353640858,1739977840718,-500.0,0.0001378,2]
[353640859,1739977840728,-224.20579526,0.0001378,2]
[353640860,1739977840737,-500.0,0.0001378,2]
[353640861,1739977840747,-500.0,0.0001378,2]
[353640862,1739977840756,-328.43,0.0001378,2]
[353640863,1739977840766,-501.56,0.0001378,2]
[353640864,1739977840779,-500.0,0.0001378,2]
[353640865,1739977840788,-605.42,0.0001378,2]
[353640866,1739977840798,-500.0,0.0001378,2]
[353640867,1739977840807,-500.0,0.0001378,2]
[353640868,1739977840817,-500.0,0.0001378,2]
[353640869,1739977840826,-500.0,0.0001378,2]
[353640870,1739977840835,-500.0,0.0001378,2]
[353640871,1739977840845,-500.0,0.0001378,2]
[353640872,1739977840855,-500.0,0.0001378,2]
[353640873,1739977840864,-3434.47,0.0001378,2]
[353640874,1739977840875,-500.0,0.0001378,2]
[353640875,1739977840885,-500.0,0.0001378,2]
[353640876,1739977840895,-500.0,0.0001378,2]
[353640877,1739977840906,-500.0,0.0001378,2]
[353640878,1739977840916,-500.0,0.0001378,2]
[353640879,1739977840926,-500.0,0.0001378,2]
[353640880,1739977840936,-500.0,0.0001378,2]
[353640881,1739977840945,-1373.28,0.0001378,2]
[353640882,1739977840955,-243.23,0.0001378,2]
[353640883,1739977840965,-500.0,0.0001378,2]
[353640884,1739977840975,-500.0,0.0001378,2]
[353640885,1739977840986,-188.27,0.0001378,2]
[353640886,1739977840999,-502.64067905,0.0001378,2]
[353640887,1739977841009,-183.15,0.0001378,2]
[353640888,1739977841019,-500.0,0.0001378,2]
[353640889,1739977841035,-154.01,0.0001378,2]
[353640890,1739977841044,-4501.69,0.0001378,2]
[353640891,1739977841054,-585.82,0.0001378,2]
[353640892,1739977841064,-500.0,0.0001378,2]
[353640893,1739977841081,-154.9,0.0001378,2]
[353640894,1739977841096,-177.4,0.0001378,2]
[353640895,1739977841106,-500.0,0.0001378,2]
[353640896,1739977841116,-174.42,0.0001378,2]
[353640897,1739977841127,-919.6,0.0001378,2]
[353640898,1739977841137,-500.0,0.0001378,2]
[353640899,1739977841148,-175.45,0.0001378,2]
[353640900,1739977841159,-874.54,0.0001378,2]
[353640902,1739977841169,-154.39,0.0001378,2]
[353640904,1739977841179,-254.4,0.0001378,2]
[353640906,1739977841189,-500.0,0.0001378,2]
[353640908,1739977841199,-500.0,0.0001378,2]
[353640910,1739977841209,-1079.29,0.0001378,2]
[353640912,1739977841219,-576.95,0.0001378,2]
[353640914,1739977841229,-500.0,0.0001378,2]
[353640916,1739977841239,-500.0,0.0001378,2]
[353640918,1739977841249,-500.0,0.0001378,2]
[353640920,1739977841259,-500.0,0.0001378,2]
[353640922,1739977841273,-500.0,0.0001378,2]
[353640924,1739977841283,-500.0,0.0001378,2]
[353640926,1739977841293,-500.0,0.0001378,2]
[353640928,1739977841303,-2922.36,0.0001378,2]
[353640930,1739977841313,-500.0,0.0001378,2]
[353640932,1739977841322,-9414.43,0.0001378,2]
[353640934,1739977841333,-500.0,0.0001378,2]
[353640936,1739977841342,-538.88,0.0001378,2]
[353640938,1739977841351,-1166.84,0.0001378,2]
[353640940,1739977841361,-500.0,0.0001378,2]
[353640942,1739977841371,-446.99,0.0001378,2]
[353640944,1739977841381,-500.0,0.0001378,2]
[353640947,1739977841391,-745.14,0.0001378,2]
[353640949,1739977841401,-500.0,0.0001378,2]
[353640951,1739977841411,-219.86,0.0001378,2]
[353640953,1739977841421,-500.0,0.0001378,2]
[353640955,1739977841431,-500.0,0.0001378,2]
[353640957,1739977841440,-151.0,0.000138,2]
[353640959,1739977841450,-163.01,0.00013863,2]
[353640960,1739977841459,-500.0,0.00013863,2]
[353640963,1739977841469,-500.0,0.00013863,2]
[353640964,1739977841480,-500.0,0.00013863,2]
[353640967,1739977841490,-377.69806669,0.00013863,2]
[353640969,1739977841500,-500.0,0.00013863,2]
[353640971,1739977841509,-500.0,0.00013863,2]
[353640973,1739977841522,-500.0,0.00013863,2]
[353640975,1739977841532,-591.95,0.00013863,2]
[353640977,1739977841542,-525.88,0.00013863,2]
[353640978,1739977841551,-501.56,0.00013863,2]
[353640981,1739977841561,-500.0,0.00013863,2]
[353640983,1739977841572,-500.0,0.00013863,2]
[353640985,1739977841582,-548.32,0.00013863,2]
[353640987,1739977841592,-373.99467371,0.00013863,2]
[353640989,1739977841601,-500.0,0.00013863,2]
[353640991,1739977841611,-578.07,0.00013863,2]
[353640993,1739977841620,-500.0,0.00013863,2]
[353640995,1739977841629,-3434.47,0.00013863,2]
[353640997,1739977841639,-184.09065981,0.00013863,2]
[353640999,1739977841648,-500.0,0.00013863,2]
[353641001,1739977841657,-500.0,0.00013863,2]
[353641002,1739977841667,-500.0,0.00013863,2]
[353641004,1739977841676,-500.0,0.00013863,2]
[353641006,1739977841686,-500.0,0.00013863,2]
[353641008,1739977841696,-1373.28,0.00013863,2]
[353641010,1739977841706,-500.0,0.00013863,2]
[353641012,1739977841715,-594.87371417,0.00013863,2]
[353641014,1739977841725,-4501.69,0.00013863,2]
[353641016,1739977841734,-500.0,0.00013863,2]
[353641018,1739977841743,-919.6,0.00013863,2]
[353641020,1739977841753,-500.0,0.00013863,2]
[353641022,1739977841762,-874.54,0.00013863,2]
[353641024,1739977841774,-421.42,0.00013863,2]
[353641026,1739977841784,-500.0,0.00013863,2]
[353641028,1739977841795,-1079.29,0.00013863,2]
[353641030,1739977841805,-500.0,0.00013863,2]
[353641032,1739977841815,-500.0,0.00013863,2]
[353641034,1739977841826,-633.42,0.00013863,2]
[353641036,1739977841835,-443.17,0.00013863,2]
[353641038,1739977841845,-500.0,0.00013863,2]
[353641040,1739977841856,-500.65,0.00013863,2]
[353641042,1739977841866,-2922.36,0.00013863,2]
[353641044,1739977841877,-500.0,0.00013863,2]
[353641046,1739977841888,-9414.43,0.00013863,2]
[353641048,1739977841898,-500.0,0.00013863,2]
[353641050,1739977841907,-538.88,0.00013863,2]
[353641052,1739977841917,-1166.84,0.00013863,2]
[353641054,1739977841927,-500.0,0.00013863,2]
[353641056,1739977841937,-500.0,0.00013863,2]
[353641058,1739977841947,-745.14,0.00013863,2]
[353641060,1739977841958,-500.0,0.00013863,2]
[353641062,1739977841969,-500.0,0.00013863,2]
[353641064,1739977841979,-151.0,0.000139,2]
[353641066,1739977841989,-151.0,0.000139,2]
[353641068,1739977842000,-612.68,0.00013945,2]
[353641070,1739977842012,-546.63300251,0.00013945,2]
[353641072,1739977842025,-500.0,0.00013945,2]
[353641074,1739977842035,-332.4,0.00013945,2]
[353641076,1739977842046,-500.0,0.00013945,2]
[353641078,1739977842056,-501.56,0.00013945,2]
[353641080,1739977842066,-500.0,0.00013945,2]
[353641082,1739977842076,-500.0,0.00013945,2]
[353641084,1739977842087,-500.0,0.00013945,2]
[353641086,1739977842097,-500.0,0.00013945,2]
[353641088,1739977842107,-3434.47,0.00013945,2]
[353641090,1739977842117,-500.0,0.00013945,2]
[353641092,1739977842126,-500.0,0.00013945,2]
[353641094,1739977842136,-500.0,0.00013945,2]
[353641097,1739977842147,-500.0,0.00013945,2]
[353641099,1739977842157,-500.0,0.00013945,2]
[353641101,1739977842167,-1373.28,0.00013945,2]
[353641103,1739977842178,-500.0,0.00013945,2]
[353641105,1739977842188,-4501.69,0.00013945,2]
[353641107,1739977842198,-500.0,0.00013945,2]
[353641109,1739977842208,-919.6,0.00013945,2]
[353641111,1739977842217,-500.0,0.00013945,2]
[353641113,1739977842227,-874.54,0.00013945,2]
[353641115,1739977842236,-500.0,0.00013945,2]
[353641117,1739977842246,-1079.29,0.00013945,2]
[353641119,1739977842257,-500.0,0.00013945,2]
[353641121,1739977842267,-500.0,0.00013945,2]
[353641123,1739977842279,-500.0,0.00013945,2]
[353641125,1739977842290,-2922.36,0.00013945,2]
[353641127,1739977842300,-500.0,0.00013945,2]
[353641129,1739977842311,-9414.43,0.00013945,2]
[353641131,1739977842321,-500.0,0.00013945,2]
[353641133,1739977842331,-538.88,0.00013945,2]
[353641135,1739977842341,-1166.84,0.00013945,2]
[353641137,1739977842352,-500.0,0.00013945,2]
[353641139,1739977842363,-500.0,0.00013945,2]
[353641141,1739977842374,-745.14,0.00013945,2]
[353641143,1739977842385,-500.0,0.00013945,2]
[353641145,1739977842396,-500.0,0.00013945,2]
[353641147,1739977842406,-250.83208852,0.00014009,2]
[353641149,1739977842416,-500.0,0.00014026,2]
[353641151,1739977842426,-500.0,0.00014027,2]
[353641153,1739977842436,-501.56,0.00014027,2]
[353641154,1739977842446,-500.0,0.00014027,2]
[353641157,1739977842456,-500.0,0.00014027,2]
[353641158,1739977842467,-500.0,0.00014027,2]
[353641161,1739977842477,-500.0,0.00014027,2]
[353641163,1739977842487,-3434.47,0.00014027,2]
[353641165,1739977842497,-500.0,0.00014027,2]
[353641166,1739977842506,-500.0,0.00014027,2]
[353641169,1739977842516,-500.0,0.00014027,2]
[353641171,1739977842527,-500.0,0.00014027,2]
[353641173,1739977842538,-500.0,0.00014027,2]
[353641175,1739977842548,-1373.28,0.00014027,2]
[353641177,1739977842558,-500.0,0.00014027,2]
[353641180,1739977842568,-4501.69,0.00014027,2]
[353641183,1739977842579,-919.6,0.00014027,2]
[353641186,1739977842589,-500.0,0.00014027,2]
[353641189,1739977842599,-874.54,0.00014027,2]
[353641194,1739977842612,-1079.29,0.00014027,2]
[353641199,1739977842622,-500.0,0.00014027,2]
[353641203,1739977842633,-226.74402441,0.00014027,2]
[353641206,1739977842642,-500.0,0.00014027,2]
[353641209,1739977842653,-2922.36,0.00014027,2]
[353641210,1739977842662,-500.0,0.00014027,2]
[353641212,1739977842672,-9414.43,0.00014027,2]
[353641214,1739977842682,-500.0,0.00014027,2]
[353641216,1739977842692,-538.88,0.00014027,2]
[353641219,1739977842821,-1166.84,0.00014027,2]
[353641220,1739977842831,-500.0,0.00014027,2]
[353641221,1739977842841,-500.0,0.00014027,2]
[353641222,1739977842850,-745.14,0.00014027,2]
[353641223,1739977842860,-500.0,0.00014027,2]
[353641224,1739977842870,-500.0,0.00014027,2]
[353641225,1739977842880,-500.0,0.00014054,2]
[353641226,1739977842891,-623.76607917,0.00014086,2]
[353641227,1739977842901,-501.04723278,0.00014089,2]
[353641228,1739977842912,-273.09137782,0.00014089,2]
[353641229,1739977842922,-500.77851559,0.00014089,2]
[353641230,1739977842934,-151.0,0.000141,2]
[353641231,1739977842944,-500.0,0.00014109,2]
[353641232,1739977842954,-501.56,0.00014109,2]
[353641233,1739977842964,-500.0,0.00014109,2]
[353641234,1739977842975,-500.0,0.00014109,2]
[353641235,1739977842985,-500.0,0.00014109,2]
[353641236,1739977842996,-500.0,0.00014109,2]
[353641237,1739977843007,-3434.47,0.00014109,2]
[353641238,1739977843017,-500.0,0.00014109,2]
[353641239,1739977843028,-500.0,0.00014109,2]
[353641240,1739977843038,-500.0,0.00014109,2]
[353641241,1739977843048,-500.0,0.00014109,2]
[353641242,1739977843058,-500.0,0.00014109,2]
[353641243,1739977843068,-1373.28,0.00014109,2]
[353641244,1739977843078,-500.0,0.00014109,2]
[353641245,1739977843088,-4501.69,0.00014109,2]
[353641246,1739977843098,-919.6,0.00014109,2]
[353641247,1739977843108,-500.0,0.00014109,2]
[353641249,1739977843118,-874.54,0.00014109,2]
[353641252,1739977843127,-1079.29,0.00014109,2]
[353641255,1739977843139,-500.0,0.00014109,2]
[353641257,1739977843148,-500.0,0.00014109,2]
[353641260,1739977843158,-2922.36,0.00014109,2]
[353641263,1739977843168,-500.0,0.00014109,2]
[353641267,1739977843178,-9414.43,0.00014109,2]
[353641271,1739977843187,-500.0,0.00014109,2]
[353641275,1739977843197,-538.88,0.00014109,2]
[353641278,1739977843207,-1166.84,0.00014109,2]
[353641281,1739977843216,-500.0,0.00014109,2]
[353641284,1739977843226,-166.11,0.00014109,2]
[353641287,1739977843236,-745.14,0.00014109,2]
[353641289,1739977843246,-500.0,0.00014109,2]
[353641291,1739977843256,-500.0,0.00014109,2]
[353641293,1739977843266,-500.0,0.00014163,2]
[353641295,1739977843277,-500.0,0.00014164,2]
[353641297,1739977843287,-500.0,0.00014191,2]
[353641299,1739977843297,-501.56,0.00014191,2]
[353641301,1739977843307,-500.0,0.00014191,2]
[353641303,1739977843317,-500.0,0.00014191,2]
[353641305,1739977843327,-500.0,0.00014191,2]
[353641307,1739977843337,-500.0,0.00014191,2]
[353641309,1739977843346,-3434.47,0.00014191,2]
[353641311,1739977843355,-500.0,0.00014191,2]
[353641313,1739977843365,-500.0,0.00014191,2]
[353641315,1739977843375,-500.0,0.00014191,2]
[353641317,1739977843385,-500.0,0.00014191,2]
[353641319,1739977843395,-1373.28,0.00014191,2]
[353641321,1739977843404,-500.0,0.00014191,2]
[353641323,1739977843414,-4501.69,0.00014191,2]
[353641325,1739977843424,-919.6,0.00014191,2]
[353641327,1739977843434,-500.0,0.00014191,2]
[353641329,1739977843444,-874.54,0.00014191,2]
[353641331,1739977843454,-1079.29,0.00014191,2]
[353641333,1739977843464,-500.0,0.00014191,2]
[353641335,1739977843474,-2922.36,0.00014191,2]
[353641337,1739977843485,-500.0,0.00014191,2]
[353641339,1739977843495,-9414.43,0.00014191,2]
[353641341,1739977843505,-500.0,0.00014191,2]
[353641343,1739977843515,-538.88,0.00014191,2]
[353641345,1739977843526,-1166.84,0.00014191,2]
[353641347,1739977843536,-500.0,0.00014191,2]
[353641349,1739977843546,-745.14,0.00014191,2]
[353641351,1739977843555,-500.0,0.00014191,2]
[353641353,1739977843565,-500.0,0.00014191,2]
[353641355,1739977843574,-151.0,0.000142,2]
[353641357,1739977843584,-151.0,0.000142,2]
[353641359,1739977843594,-151.0,0.000142,2]
[353641361,1739977843604,-1000.0,0.00014221,2]
[353641363,1739977843615,-1000.0,0.00014221,2]
[353641365,1739977843625,-1000.0,0.00014221,2]
[353641367,1739977843635,-1000.0,0.00014221,2]
[353641369,1739977843645,-500.0,0.00014252,2]
[353641371,1739977843654,-500.0,0.00014273,2]
[353641373,1739977843664,-501.56,0.00014273,2]
[353641375,1739977843673,-500.0,0.00014273,2]
[353641377,1739977843682,-500.0,0.00014273,2]
[353641379,1739977843692,-500.0,0.00014273,2]
[353641381,1739977843701,-500.0,0.00014273,2]
[353641383,1739977843711,-3434.47,0.00014273,2]
[353641384,1739977843721,-500.0,0.00014273,2]
[353641385,1739977843743,-500.0,0.00014273,2]
[353641386,1739977843755,-500.0,0.00014273,2]
[353641387,1739977843765,-282.93097554,0.00014273,2]
[353641388,1739977843777,-1373.28,0.00014273,2]
[353641389,1739977843786,-500.0,0.00014273,2]
[353641390,1739977843797,-4501.69,0.00014273,2]
[353641391,1739977843807,-919.6,0.00014273,2]
[353641392,1739977843817,-500.0,0.00014273,2]
[353641393,1739977843827,-874.54,0.00014273,2]
[353641394,1739977843837,-1079.29,0.00014273,2]
[353641395,1739977843846,-500.0,0.00014273,2]
[353641396,1739977843855,-2922.36,0.00014273,2]
[353641397,1739977843865,-452.28,0.00014273,2]
[353641398,1739977843875,-9414.43,0.00014273,2]
[353641399,1739977843884,-273.87248043,0.00014273,2]
[353641400,1739977843894,-538.88,0.00014273,2]
[353641401,1739977843904,-1166.84,0.00014273,2]
[353641402,1739977843914,-500.0,0.00014273,2]
[353641403,1739977843924,-745.14,0.00014273,2]
[353641404,1739977843935,-500.0,0.00014273,2]
[353641406,1739977843944,-500.0,0.00014273,2]
[353641407,1739977843954,-500.0,0.00014286,2]
[353641409,1739977843963,-500.0,0.00014286,2]
[353641411,1739977843973,-500.0,0.00014286,2]
[353641413,1739977843983,-500.39970858,0.00014286,2]
[353641415,1739977843994,-548.61166477,0.000143,2]
[353641417,1739977844010,-151.0,0.000143,2]
[353641419,1739977844020,-151.0,0.000143,2]
[353641421,1739977844032,-500.0,0.00014328,2]
[353641423,1739977844042,-500.0,0.00014356,2]
[353641425,1739977844052,-501.56,0.00014356,2]
[353641427,1739977844062,-500.0,0.00014356,2]
[353641429,1739977844071,-500.0,0.00014356,2]
[353641431,1739977844082,-500.0,0.00014356,2]
[353641433,1739977844091,-500.0,0.00014356,2]
[353641435,1739977844101,-3434.47,0.00014356,2]
[353641437,1739977844110,-500.0,0.00014356,2]
[353641439,1739977844120,-500.0,0.00014356,2]
[353641441,1739977844129,-500.0,0.00014356,2]
[353641443,1739977844139,-1373.28,0.00014356,2]
[353641445,1739977844149,-500.0,0.00014356,2]
[353641447,1739977844158,-4501.69,0.00014356,2]
[353641449,1739977844168,-919.6,0.00014356,2]
[353641451,1739977844178,-500.0,0.00014356,2]
[353641453,1739977844188,-874.54,0.00014356,2]
[353641455,1739977844198,-1079.29,0.00014356,2]
[353641457,1739977844208,-500.0,0.00014356,2]
[353641459,1739977844218,-2922.36,0.00014356,2]
[353641461,1739977844227,-9414.43,0.00014356,2]
[353641463,1739977844238,-538.88,0.00014356,2]
[353641465,1739977844250,-1166.84,0.00014356,2]
[353641467,1739977844260,-542.12,0.00014356,2]
[353641469,1739977844270,-745.14,0.00014356,2]
[353641472,1739977844285,-500.0,0.00014356,2]
[353641473,1739977844294,-500.0,0.00014356,2]
[353641476,1739977844304,-151.0,0.000144,2]
[353641478,1739977844314,-151.0,0.000144,2]
[353641480,1739977844324,-179.69451932,0.000144,2]
[353641481,1739977844333,-500.0,0.00014438,2]
[353641484,1739977844343,-501.56,0.00014438,2]
[353641485,1739977844353,-500.0,0.00014438,2]
[353641487,1739977844363,-500.0,0.00014438,2]
[353641489,1739977844374,-500.0,0.00014438,2]
[353641491,1739977844384,-500.0,0.00014438,2]
[353641494,1739977844394,-3434.47,0.00014438,2]
[353641496,1739977844404,-535.32,0.00014438,2]
[353641497,1739977844414,-500.0,0.00014438,2]
[353641499,1739977844424,-500.0,0.00014438,2]
[353641501,1739977844433,-1373.28,0.00014438,2]
[353641503,1739977844443,-500.0,0.00014438,2]
[353641505,1739977844452,-4501.69,0.00014438,2]
[353641507,1739977844461,-919.6,0.00014438,2]
[353641509,1739977844471,-500.0,0.00014438,2]
[353641511,1739977844481,-874.54,0.00014438,2]
[353641513,1739977844490,-1079.29,0.00014438,2]
[353641515,1739977844499,-500.0,0.00014438,2]
[353641517,1739977844509,-2922.36,0.00014438,2]
[353641519,1739977844518,-9414.43,0.00014438,2]
[353641521,1739977844532,-538.88,0.00014438,2]
[353641523,1739977844542,-1166.84,0.00014438,2]
[353641525,1739977844551,-745.14,0.00014438,2]
[353641527,1739977844561,-501.25,0.00014438,2]
[353641529,1739977844571,-500.0,0.00014438,2]
[353641531,1739977844581,-151.0,0.000145,2]
[353641533,1739977844590,-151.0,0.000145,2]
[353641535,1739977844599,-151.0,0.000145,2]
[353641537,1739977844609,-500.0,0.0001452,2]
[353641539,1739977844618,-501.56,0.0001452,2]
[353641541,1739977844628,-500.0,0.0001452,2]
[353641543,1739977844637,-500.0,0.0001452,2]
[353641545,1739977844646,-500.0,0.0001452,2]
[353641547,1739977844655,-500.0,0.0001452,2]
[353641549,1739977844664,-3434.47,0.0001452,2]
[353641551,1739977844674,-500.0,0.0001452,2]
[353641553,1739977844683,-250.75,0.0001452,2]
[353641555,1739977844692,-1373.28,0.0001452,2]
[353641558,1739977844703,-219.64,0.0001452,2]
[353641560,1739977844712,-4501.69,0.0001452,2]
[353641562,1739977844721,-919.6,0.0001452,2]
[353641564,1739977844731,-500.0,0.0001452,2]
[353641566,1739977844740,-874.54,0.0001452,2]
[353641568,1739977844751,-1079.29,0.0001452,2]
[353641570,1739977844761,-500.0,0.0001452,2]
[353641572,1739977844771,-2922.36,0.0001452,2]
[353641574,1739977844783,-9414.43,0.0001452,2]
[353641576,1739977844792,-538.88,0.0001452,2]
[353641578,1739977844804,-1166.84,0.0001452,2]
[353641580,1739977844813,-745.14,0.0001452,2]
[353641582,1739977844823,-500.0,0.0001452,2]
[353641584,1739977844832,-151.0,0.000146,2]
[353641586,1739977844842,-500.0,0.00014602,2]
[353641588,1739977844851,-422.29,0.00014602,2]
[353641590,1739977844860,-501.56,0.00014602,2]
[353641592,1739977844869,-500.0,0.00014602,2]
[353641594,1739977844879,-507.13342416,0.00014602,2]
[353641596,1739977844889,-500.0,0.00014602,2]
[353641598,1739977844898,-500.0,0.00014602,2]
[353641600,1739977844908,-3434.47,0.00014602,2]
[353641602,1739977844917,-500.0,0.00014602,2]
[353641604,1739977844926,-1373.28,0.00014602,2]
[353641606,1739977844936,-4501.69,0.00014602,2]
[353641607,1739977844947,-919.6,0.00014602,2]
[353641608,1739977844956,-403.60895834,0.00014602,2]
[353641609,1739977844966,-874.54,0.00014602,2]
[353641610,1739977844976,-1079.29,0.00014602,2]
[353641611,1739977844985,-500.0,0.00014602,2]
[353641612,1739977844997,-2922.36,0.00014602,2]
[353641613,1739977845007,-9414.43,0.00014602,2]
[353641614,1739977845017,-538.88,0.00014602,2]
[353641615,1739977845030,-1166.84,0.00014602,2]
[353641616,1739977845041,-745.14,0.00014602,2]
[353641617,1739977845051,-500.0,0.00014602,2]
[353641622,1739977845147,-510.347,0.00014633,2]
[353641623,1739977845157,-501.56,0.00014684,2]
[353641624,1739977845167,-500.0,0.00014684,2]
[353641625,1739977845176,-500.0,0.00014684,2]
[353641626,1739977845186,-500.0,0.00014684,2]
[353641627,1739977845195,-3434.47,0.00014684,2]
[353641628,1739977845205,-500.0,0.00014684,2]